fUST/lending_fUST_20240122
["ID","MTS","AMOUNT","RATE_DAILY","PERIOD"]
[312419635,1705864239430,-500.0,0.00027397,2]
[312419636,1705864239439,-500.0,0.00027397,2]
[312419637,1705864239449,-500.0,0.00027397,2]
[312419638,1705864239459,-155.0,0.00027397,2]
[312419639,1705864239471,-500.0,0.00027397,2]
[312419640,1705864239481,-500.0,0.00027397,2]
[312419641,1705864239490,-648.95,0.00027397,2]
[312419642,1705864239499,-500.0,0.00027397,2]
[312419643,1705864239508,-500.0,0.00027397,2]
[312419644,1705864239518,-500.0,0.00027397,2]
[312419645,1705864239527,-581.49926245,0.00027397,2]
[312419646,1705864239536,-500.0,0.00027397,2]
[312419647,1705864239545,-500.0,0.00027397,2]
[312419648,1705864239554,-500.0,0.00027397,2]
[312419649,1705864239563,-500.0,0.00027397,2]
[312419650,1705864239572,-500.0,0.00027397,2]
[312419651,1705864239581,-500.0,0.00027397,2]
[312419652,1705864239590,-500.0,0.00027397,2]
[312419653,1705864239600,-500.0,0.00027397,2]
[312419654,1705864239610,-598.77,0.00027397,2]
[312419655,1705864239620,-500.0,0.00027397,2]
[312419656,1705864239629,-165.83546743,0.00027397,2]
[312419657,1705864239638,-200.0,0.00027397,2]
[312419658,1705864239647,-500.0,0.00027397,2]
[312419659,1705864239656,-500.0,0.00027397,2]
[312419660,1705864239665,-500.0,0.00027397,2]
[312419661,1705864239674,-500.0,0.00027397,2]
[312419662,1705864239682,-500.0,0.00027397,2]
[312419663,1705864239692,-500.0,0.00027397,2]
[312419664,1705864239703,-500.0,0.00027397,2]
[312419665,1705864239712,-500.0,0.00027397,2]
[312419666,1705864239722,-500.0,0.00027397,2]
[312419668,1705864239732,-515.04596927,0.00027397,2]
[312419669,1705864239741,-500.0,0.00027397,2]
[312419670,1705864239750,-500.0,0.00027397,2]
[312419671,1705864239759,-10000.0,0.00027397,10]
[312419672,1705864239769,-500.0,0.00027397,2]
[312419673,1705864239779,-500.0,0.00027397,2]
[312419674,1705864239790,-500.0,0.00027397,2]
[312419675,1705864239800,-500.0,0.00027397,2]
[312419676,1705864239810,-388.68371797,0.00027397,2]
[312419677,1705864239820,-703.98,0.00027397,2]
[312419678,1705864239830,-604.24,0.00027397,2]
[312419679,1705864239839,-500.0,0.00027397,2]
[312419680,1705864239848,-708.66,0.00027397,2]
[312419681,1705864239857,-500.0,0.00027397,2]
[312419682,1705864239867,-500.0,0.00027397,2]
[312419683,1705864239875,-658.75,0.00027397,2]
[312419684,1705864239884,-1198.26,0.00027397,2]
[312419685,1705864239893,-500.0,0.00027397,2]
[312419686,1705864239902,-500.0,0.00027397,2]
[312419687,1705864239911,-649.80351875,0.00027397,2]
[312419688,1705864239920,-454.30429617,0.00027397,2]
[312419689,1705864239930,-500.0,0.00027397,2]
[312419690,1705864239939,-500.0,0.00027397,2]
[312419691,1705864239948,-500.0,0.00027397,2]
[312419692,1705864239957,-500.0,0.00027397,2]
[312419693,1705864239966,-4766.63,0.00027397,2]
[312419694,1705864239975,-1711.56,0.00027397,2]
[312419695,1705864239984,-866.56,0.00027397,2]
[312419696,1705864239994,-501.64392268,0.00027397,2]
[312419697,1705864240003,-20171.51,0.00027397,2]
[312419698,1705864240015,-272.94732908,0.00027397,2]
[312419699,1705864240024,-500.0,0.00027397,2]
[312419700,1705864240033,-759.9,0.00027397,2]
[312419701,1705864240043,-551.66,0.00027397,2]
[312419702,1705864240052,-500.0,0.00027397,2]
[312419703,1705864240061,-500.0,0.00027397,2]
[312419704,1705864240070,-1865.78,0.00027397,2]
[312419705,1705864240080,-833.56,0.00027397,2]
[312419706,1705864240093,-500.0,0.00027397,2]
[312419707,1705864240102,-582.91849206,0.00027397,2]
[312419708,1705864240111,-500.0,0.00027397,2]
[312419709,1705864240120,-2205.65,0.00027397,2]
[312419710,1705864240129,-500.0,0.00027397,2]
[312419711,1705864240138,-171.16187186,0.00027397,2]
[312419712,1705864240147,-500.0,0.00027397,2]
[312419713,1705864240156,-500.0,0.00027397,2]
[312419714,1705864240165,-500.0,0.00027397,2]
[312419715,1705864240174,-500.0,0.00027397,2]
[312419716,1705864240183,-1280.66,0.00027397,2]
[312419717,1705864240193,-975.59,0.00027397,2]
[312419718,1705864240202,-500.0,0.00027397,2]
[312419719,1705864240211,-13421.81,0.00027397,2]
[312419720,1705864240220,-500.0,0.00027397,2]
[312419721,1705864240229,-500.0,0.00027397,2]
[312419722,1705864240238,-1931.2,0.00027397,2]
[312419723,1705864240247,-500.0,0.00027397,2]
[312419724,1705864240256,-500.0,0.00027397,2]
[312419725,1705864240265,-1035.87,0.00027397,2]
[312419726,1705864240274,-500.0,0.00027397,2]
[312419727,1705864240283,-500.0,0.00027397,2]
[312419728,1705864240292,-7421.75,0.00027397,2]
[312419729,1705864240301,-308.79262305,0.00027397,2]
[312419730,1705864240312,-1003.16,0.00027397,2]
[312419732,1705864240321,-500.0,0.00027397,2]
[312419733,1705864240331,-558.29816808,0.00027397,2]
[312419736,1705864240340,-2300.15,0.00027397,2]
[312419739,1705864240349,-1834.47,0.00027397,2]
[312419740,1705864240358,-500.0,0.00027397,2]
[312419741,1705864240368,-1357.68,0.00027397,2]
[312419742,1705864240377,-1162.38,0.00027397,2]
[312419744,1705864240387,-500.0,0.00027397,2]
[312419745,1705864240397,-500.0,0.00027397,2]
[312419746,1705864240406,-9516.26,0.00027397,2]
[312419747,1705864240416,-500.0,0.00027397,2]
[312419748,1705864240425,-5289.01,0.00027397,2]
[312419749,1705864240435,-500.0,0.00027397,2]
[312419750,1705864240444,-7025.12,0.00027397,2]
[312419751,1705864240453,-2575.48,0.00027397,2]
[312419752,1705864240462,-500.0,0.00027397,2]
[312419753,1705864240473,-500.0,0.00027397,2]
[312419754,1705864240482,-500.0,0.00027397,2]
[312419755,1705864240493,-500.0,0.00027397,2]
[312419757,1705864240501,-1539.31,0.00027397,2]
[312419758,1705864240511,-500.0,0.00027397,2]
[312419759,1705864240520,-500.0,0.00027397,2]
[312419760,1705864240529,-500.0,0.00027397,2]
[312419761,1705864240538,-500.0,0.00027397,2]
[312419762,1705864240548,-989.62,0.00027397,2]
[312419763,1705864240557,-500.0,0.00027397,2]
[312419764,1705864240568,-500.0,0.00027397,2]
[312419765,1705864240577,-500.0,0.00027397,2]
[312419766,1705864240587,-2954.97,0.00027397,2]
[312419767,1705864240597,-430.98156131,0.00027397,2]
[312419768,1705864240607,-500.0,0.00027397,2]
[312419770,1705864240616,-1506.92,0.00027397,2]
[312419771,1705864240625,-500.0,0.00027397,2]
[312419772,1705864240633,-500.0,0.00027397,2]
[312419773,1705864240642,-500.0,0.00027397,2]
[312419774,1705864240651,-517.79,0.00027397,2]
[312419775,1705864240660,-500.0,0.00027397,2]
[312419776,1705864240670,-1500.0,0.000274,2]
[312419777,1705864240680,-7379.86363499,0.000275,2]
[312419778,1705864240690,-42074.72337016,0.000275,2]
[312419779,1705864240700,-201.07,0.000275,4]
[312419780,1705864240710,-173.28166417,0.0002767,2]
[312419782,1705864240719,-3216.92126529,0.0002767,2]
[312419783,1705864240728,-261.52719804,0.0002767,2]
[312419784,1705864240737,-1354.60028178,0.0002767,5]
[312419785,1705864240747,-1825.57072994,0.0002767,2]
[312419786,1705864240756,-594.71433165,0.00027671,2]
[312419787,1705864240765,-500.0,0.00027671,2]
[312419788,1705864240774,-500.0,0.00027671,2]
[312419789,1705864240782,-500.0,0.00027671,2]
[312419790,1705864240792,-500.0,0.00027671,2]
[312419791,1705864240801,-500.0,0.00027671,2]
[312419792,1705864240811,-500.0,0.00027671,2]
[312419793,1705864240820,-574.04952877,0.00027671,2]
[312419794,1705864240829,-748.73,0.00027671,2]
[312419795,1705864240838,-500.0,0.00027671,2]
[312419796,1705864240847,-500.0,0.00027671,2]
[312419797,1705864240856,-869.82,0.00027671,2]
[312419798,1705864240865,-500.0,0.00027671,2]
[312419799,1705864240874,-500.0,0.00027671,2]
[312419800,1705864240883,-500.0,0.00027671,2]
[312419801,1705864240892,-880.2,0.00027671,2]
[312419802,1705864240901,-500.0,0.00027671,2]
[312419803,1705864240909,-500.0,0.00027671,2]
[312419804,1705864240918,-793.5,0.00027671,2]
[312419805,1705864240927,-500.0,0.00027671,2]
[312419806,1705864240936,-500.0,0.00027671,2]
[312419807,1705864240945,-500.0,0.00027671,2]
[312419808,1705864240954,-500.0,0.00027671,2]
[312419809,1705864240963,-500.0,0.00027671,2]
[312419810,1705864240972,-550.66,0.00027671,2]
[312419811,1705864240981,-500.0,0.00027671,2]
[312419812,1705864240990,-500.0,0.00027671,2]
[312419813,1705864240999,-500.0,0.00027671,2]
[312419814,1705864241009,-500.0,0.00027671,2]
[312419815,1705864241022,-907.97,0.00027671,2]
[312419816,1705864241031,-500.0,0.00027671,2]
[312419817,1705864241040,-500.0,0.00027671,2]
[312419818,1705864241049,-500.0,0.00027671,2]
[312419819,1705864241058,-500.0,0.00027671,2]
[312419820,1705864241067,-500.0,0.00027671,2]
[312419821,1705864241077,-500.0,0.00027671,2]
[312419822,1705864241086,-504.1339505,0.00027671,2]
[312419823,1705864241097,-500.0,0.00027671,2]
[312419824,1705864241106,-500.0,0.00027671,2]
[312419825,1705864241116,-546.07773803,0.00027671,2]
[312419826,1705864241125,-500.0,0.00027671,2]
[312419827,1705864241134,-500.0,0.00027671,2]
[312419828,1705864241143,-500.0,0.00027671,2]
[312419829,1705864241152,-582.05,0.00027671,2]
[312419830,1705864241161,-500.0,0.00027671,2]
[312419831,1705864241170,-642.51467487,0.00027671,2]
[312419832,1705864241178,-500.0,0.00027671,2]
[312419833,1705864241187,-1844.11,0.00027671,2]
[312419834,1705864241196,-500.0,0.00027671,2]
[312419835,1705864241206,-1000.0,0.00027671,2]
[312419836,1705864241217,-500.0,0.00027671,2]
[312419837,1705864241227,-500.0,0.00027671,2]
[312419838,1705864241235,-500.0,0.00027671,2]
[312419839,1705864241244,-500.0,0.00027671,2]
[312419840,1705864241254,-636.7,0.00027671,2]
[312419841,1705864241263,-500.0,0.00027671,2]
[312419842,1705864241272,-500.0,0.00027671,2]
[312419843,1705864241280,-500.0,0.00027671,2]
[312419844,1705864241290,-500.0,0.00027671,2]
[312419845,1705864241299,-500.0,0.00027671,2]
[312419846,1705864241308,-500.0,0.00027671,2]
[312419848,1705864241317,-500.0,0.00027671,2]
[312419849,1705864241326,-500.0,0.00027671,2]
[312419850,1705864241335,-500.0,0.00027671,2]
[312419851,1705864241344,-554.67,0.00027671,2]
[312419852,1705864241353,-789.95,0.00027671,2]
[312419853,1705864241362,-532.73,0.00027671,2]
[312419854,1705864241371,-500.0,0.00027671,2]
[312419855,1705864241380,-500.0,0.00027671,2]
[312419856,1705864241389,-500.0,0.00027671,2]
[312419857,1705864241398,-983.13,0.00027671,2]
[312419858,1705864241407,-500.0,0.00027671,2]
[312419859,1705864241416,-500.0,0.00027671,2]
[312419860,1705864241426,-500.0,0.00027671,2]
[312419862,1705864241435,-500.0,0.00027671,2]
[312419864,1705864241444,-500.0,0.00027671,2]
[312419865,1705864241453,-500.0,0.00027671,2]
[312419866,1705864241462,-500.0,0.00027671,2]
[312419867,1705864241472,-500.0,0.00027671,2]
[312419868,1705864241481,-648.95,0.00027671,2]
[312419869,1705864241490,-500.0,0.00027671,2]
[312419870,1705864241499,-500.0,0.00027671,2]
[312419871,1705864241518,-500.0,0.00027671,2]
[312419872,1705864241529,-500.0,0.00027671,2]
[312419873,1705864241538,-500.0,0.00027671,2]
[312419874,1705864241548,-500.0,0.00027671,2]
[312419875,1705864241558,-500.0,0.00027671,2]
[312419876,1705864241567,-500.0,0.00027671,2]
[312419877,1705864241577,-500.0,0.00027671,2]
[312419878,1705864241586,-500.0,0.00027671,2]
[312419879,1705864241596,-598.77,0.00027671,2]
[312419880,1705864241605,-500.0,0.00027671,2]
[312419881,1705864241614,-500.0,0.00027671,2]
[312419882,1705864241624,-500.0,0.00027671,2]
[312419883,1705864241633,-500.0,0.00027671,2]
[312419884,1705864241642,-500.0,0.00027671,2]
[312419885,1705864241652,-500.0,0.00027671,2]
[312419886,1705864241661,-500.0,0.00027671,2]
[312419887,1705864241671,-500.0,0.00027671,2]
[312419888,1705864241680,-500.0,0.00027671,2]
[312419889,1705864241689,-500.0,0.00027671,2]
[312419890,1705864241699,-500.0,0.00027671,2]
[312419891,1705864241708,-500.0,0.00027671,2]
[312419892,1705864241717,-500.0,0.00027671,2]
[312419893,1705864241727,-500.0,0.00027671,2]
[312419894,1705864241736,-703.98,0.00027671,2]
[312419895,1705864241745,-604.24,0.00027671,2]
[312419896,1705864241755,-500.0,0.00027671,2]
[312419897,1705864241764,-708.66,0.00027671,2]
[312419898,1705864241774,-500.0,0.00027671,2]
[312419899,1705864241783,-459.96835433,0.00027671,2]
[312419900,1705864241792,-658.75,0.00027671,2]
[312419901,1705864241801,-1198.26,0.00027671,2]
[312419902,1705864241811,-500.0,0.00027671,2]
[312419903,1705864241821,-500.0,0.00027671,2]
[312419904,1705864241830,-500.0,0.00027671,2]
[312419905,1705864241839,-500.0,0.00027671,2]
[312419906,1705864241848,-500.0,0.00027671,2]
[312419907,1705864241857,-4766.63,0.00027671,2]
[312419908,1705864241866,-1711.56,0.00027671,2]
[312419909,1705864241875,-866.56,0.00027671,2]
[312419910,1705864241885,-20171.51,0.00027671,2]
[312419911,1705864241894,-500.0,0.00027671,2]
[312419912,1705864241903,-759.9,0.00027671,2]
[312419913,1705864241912,-551.66,0.00027671,2]
[312419914,1705864241922,-500.0,0.00027671,2]
[312419915,1705864241931,-1865.78,0.00027671,2]
[312419916,1705864241940,-833.56,0.00027671,2]
[312419917,1705864241949,-500.0,0.00027671,2]
[312419918,1705864241958,-2205.65,0.00027671,2]
[312419919,1705864241968,-500.0,0.00027671,2]
[312419920,1705864241977,-500.0,0.00027671,2]
[312419921,1705864241987,-500.0,0.00027671,2]
[312419922,1705864241996,-500.0,0.00027671,2]
[312419923,1705864242007,-500.0,0.00027671,2]
[312419924,1705864242020,-1280.66,0.00027671,2]
[312419925,1705864242029,-975.59,0.00027671,2]
[312419926,1705864242039,-500.0,0.00027671,2]
[312419927,1705864242048,-13421.81,0.00027671,2]
[312419928,1705864242058,-500.0,0.00027671,2]
[312419929,1705864242067,-1931.2,0.00027671,2]
[312419930,1705864242077,-500.0,0.00027671,2]
[312419931,1705864242086,-500.0,0.00027671,2]
[312419932,1705864242242,-500.0,0.00027671,2]
[312419933,1705864242253,-1035.87,0.00027671,2]
[312419934,1705864242262,-7421.75,0.00027671,2]
[312419935,1705864242272,-1003.16,0.00027671,2]
[312419936,1705864242282,-500.0,0.00027671,2]
[312419937,1705864242294,-2300.15,0.00027671,2]
[312419938,1705864242306,-1834.47,0.00027671,2]
[312419939,1705864242317,-500.0,0.00027671,2]
[312419940,1705864242327,-1357.68,0.00027671,2]
[312419941,1705864242337,-1162.38,0.00027671,2]
[312419942,1705864242349,-500.0,0.00027671,2]
[312419943,1705864242360,-500.0,0.00027671,2]
[312419944,1705864242374,-9516.26,0.00027671,2]
[312419945,1705864242385,-5289.01,0.00027671,2]
[312419946,1705864242396,-500.0,0.00027671,2]
[312419947,1705864242406,-7025.12,0.00027671,2]
[312419948,1705864242418,-2575.48,0.00027671,2]
[312419949,1705864242429,-500.0,0.00027671,2]
[312419950,1705864242441,-500.0,0.00027671,2]
[312419951,1705864242452,-500.0,0.00027671,2]
[312419952,1705864242463,-1539.31,0.00027671,2]
[312419953,1705864242475,-989.62,0.00027671,2]
[312419954,1705864242486,-500.0,0.00027671,2]
[312419955,1705864242497,-500.0,0.00027671,2]
[312419956,1705864242507,-2954.97,0.00027671,2]
[312419957,1705864242517,-1506.92,0.00027671,2]
[312419958,1705864242527,-500.0,0.00027671,2]
[312419959,1705864242537,-507.59096993,0.00027671,2]
[312419960,1705864242553,-517.79,0.00027671,2]
[312419961,1705864242563,-500.0,0.00027671,2]
[312419962,1705864242574,-21387.97562975,0.00027799,2]
[312419963,1705864242585,-1496.91898723,0.000278,2]
[312419964,1705864242596,-8651.73527323,0.00027872,3]
[312419965,1705864242607,-2363.83231568,0.00027872,3]
[312419966,1705864242617,-13397.25074347,0.00027872,5]
[312419967,1705864242636,-19195.56243795,0.00027872,5]
[312419968,1705864242646,-1140.74846135,0.00027872,3]
[312419969,1705864242655,-158.69005598,0.00027899,2]
[312419970,1705864242665,-250.00000001,0.00027899,2]
[312419971,1705864242677,-525.0,0.00027899,2]
[312419972,1705864242686,-500.0,0.00027899,2]
[312419973,1705864242695,-500.0,0.00027899,2]
[312419974,1705864242705,-500.0,0.00027899,2]
[312419975,1705864242714,-500.0,0.00027899,2]
[312419977,1705864242723,-500.0,0.00027899,2]
[312419978,1705864242733,-366.95293948,0.00027899,2]
[312419979,1705864242742,-250.0,0.00027899,2]
[312419980,1705864242752,-500.0,0.00027899,2]
[312419981,1705864242762,-500.0,0.00027899,2]
[312419982,1705864242771,-500.0,0.00027899,2]
[312419983,1705864242780,-431.40114356,0.00027899,2]
[312419984,1705864242794,-311.37143275,0.00027899,2]
[312419985,1705864242804,-387.20036505,0.00027899,2]
[312419986,1705864242813,-200.0,0.00027899,2]
[312419987,1705864242822,-500.0,0.00027899,2]
[312419988,1705864242832,-490.0,0.00027899,2]
[312419989,1705864242840,-500.0,0.00027899,2]
[312419990,1705864242849,-500.0,0.00027899,2]
[312419991,1705864242859,-500.0,0.00027899,2]
[312419993,1705864242868,-489.27058597,0.00027899,2]
[312419994,1705864242880,-500.0,0.00027899,2]
[312419995,1705864242889,-500.0,0.00027899,2]
[312419996,1705864242899,-438.00381186,0.00027899,2]
[312419997,1705864242909,-303.95328726,0.00027899,2]
[312419998,1705864242919,-500.0,0.00027899,2]
[312420000,1705864242928,-500.0,0.00027899,2]
[312420001,1705864242939,-500.0,0.00027899,2]
[312420002,1705864242950,-250.0,0.00027899,2]
[312420003,1705864242960,-500.0,0.00027899,2]
[312420004,1705864242970,-500.0,0.00027899,2]
[312420005,1705864242985,-500.0,0.00027899,2]
[312420007,1705864242995,-500.0,0.00027899,2]
[312420008,1705864243008,-427.31627086,0.00027899,2]
[312420009,1705864243017,-500.0,0.00027899,2]
[312420010,1705864243029,-500.0,0.00027899,2]
[312420011,1705864243039,-426.14286062,0.00027899,2]
[312420012,1705864243053,-500.0,0.00027899,2]
[312420013,1705864243062,-250.0,0.00027899,2]
[312420014,1705864243072,-500.0,0.00027899,2]
[312420015,1705864243084,-500.0,0.00027899,2]
[312420016,1705864243094,-500.0,0.00027899,4]
[312420017,1705864243105,-508.84617584,0.00027899,4]
[312420018,1705864243115,-500.0,0.00027899,4]
[312420019,1705864243125,-500.0,0.00027899,4]
[312420020,1705864243134,-500.0,0.00027899,4]
[312420021,1705864243144,-597.8572635,0.00027899,4]
[312420022,1705864243154,-500.0,0.00027899,4]
[312420023,1705864243164,-496.31669131,0.00027899,4]
[312420024,1705864243173,-500.0,0.00027899,4]
[312420025,1705864243183,-500.0,0.00027899,4]
[312420026,1705864243193,-500.0,0.00027899,4]
[312420027,1705864243202,-500.0,0.00027899,4]
[312420028,1705864243212,-500.0,0.00027899,4]
[312420029,1705864243221,-500.0,0.00027899,4]
[312420030,1705864243230,-387.54512162,0.00027899,4]
[312420031,1705864243239,-500.0,0.00027899,4]
[312420032,1705864243249,-500.0,0.00027899,4]
[312420033,1705864243259,-643.12303791,0.00027899,4]
[312420034,1705864243268,-500.0,0.00027899,4]
[312420035,1705864243278,-551.07343649,0.00027899,4]
[312420036,1705864243287,-612378.76775322,0.000279,2]
[312420037,1705864243519,-12649.06991913,0.000279,2]
[312420038,1705864243531,-3401.06694149,0.000279,2]
[312420042,1705864244420,-500.0,0.00027397,2]
[312420043,1705864244429,-500.0,0.00027397,2]
[312420044,1705864244448,-500.0,0.00027397,2]
[312420045,1705864244459,-500.0,0.00027397,2]
[312420046,1705864244468,-428.49,0.00027671,2]
[312420047,1705864244478,-500.0,0.00027671,2]
[312420049,1705864244487,-6984.05770082,0.000279,2]
[312420062,1705864246386,-2290.10540057,0.00027396,2]
[312420080,1705865432478,-154.75239617,0.00024656,4]
[312420081,1705865432488,-297.43588018,0.000258,2]
[312420082,1705865432497,-2170.39322365,0.00026107,2]
[312420083,1705865432509,-1797.14927109,0.00026107,2]
[312420084,1705865432519,-237.94010324,0.00026108,2]
[312420120,1705865438626,-9257.92165244,0.00026108,2]
[312420121,1705865438640,-2240.62235996,0.00026108,2]
[312420122,1705865438653,-2425.75786189,0.00026108,2]
[312420123,1705865438666,-3167.40203627,0.00026108,2]
[312420124,1705865438684,-4209.87716374,0.00026108,2]
[312420125,1705865438698,-3400.19620463,0.00026108,2]
[312420131,1705865441563,-6041.78031691,0.00026108,2]
[312420156,1705865443518,-9295.96293438,0.00026107,2]
[312420157,1705865443528,-16414.53706562,0.00026108,2]
[312420158,1705865443592,-2603.9652353,0.00026108,2]
[312420159,1705865443614,-755.61873334,0.00026114,2]
[312420160,1705865443624,-1586.57489496,0.00026114,2]
[312420167,1705866395248,-154.75239617,0.00021996,2]
[312420168,1705866395269,-158.65718647,0.00021996,2]
[312420169,1705866434079,-154.75239617,0.00021995,4]
[312420170,1705866434098,-955.64661154,0.00021996,2]
[312420171,1705866434118,-200.82434832,0.00021996,2]
[312420172,1705866434138,-293.1976279,0.00022,4]
[312420173,1705866434301,-264.020091,0.00022786,2]
[312420174,1705866434322,-313.26590223,0.00022929,2]
[312420211,1705866632631,-154.75239617,0.0002197,4]
[312420212,1705866632640,-285.87955285,0.0002197,2]
[312420214,1705866632651,-300.0,0.00021996,2]
[312420217,1705866632666,-250.0,0.00022649,2]
[312420218,1705866632675,-890.1973123,0.00022735,2]
[312420220,1705866632684,-182.87244701,0.00022929,2]
[312420221,1705866632694,-828.10090231,0.00022929,2]
[312420233,1705866632837,-941.38887687,0.00022929,2]
[312420288,1705866638785,-643.14902925,0.00022929,2]
[312420289,1705866638846,-1628.07016129,0.00022929,2]
[312420291,1705866638855,-1567.27862287,0.00022929,2]
[312420293,1705866638865,-1612.8635761,0.00023216,2]
[312420295,1705866638875,-366.33692302,0.00024008,2]
[312420296,1705866638887,-154.86062544,0.00024411,2]
[312420297,1705866638896,-1740.68284208,0.00024412,2]
[312420298,1705866638905,-8585.53512242,0.00024413,2]
[312420346,1705866641780,-3906.03814652,0.00024413,2]
[312420347,1705866641795,-11939.87615468,0.00024413,2]
[312420348,1705866641807,-359.04862008,0.00024413,2]
[312420453,1705867631082,-154.75239617,0.00022312,4]
[312420454,1705867631109,-244.22461535,0.00022313,2]
[312420455,1705867631130,-187.29041613,0.00022929,2]
[312420456,1705867631154,-2452.816754,0.00022929,2]
[312420457,1705867631175,-623.86586286,0.00023485,2]
[312420458,1705867631195,-1947.8340016,0.00023919,2]
[312420459,1705867631217,-2359.84707037,0.00024413,2]
[312420462,1705867745098,464.25012215,0.00023484,20]
[312420623,1705867837909,-154.75239617,0.00023485,4]
[312420625,1705867837919,-15626.17847717,0.00024413,2]
[312420627,1705867837928,-1354.60028178,0.00024413,5]
[312420629,1705867837937,-1825.57072994,0.00024413,2]
[312420631,1705867837946,-191.7250181,0.0002496,2]
[312420633,1705867837956,-4330.7903964,0.00025,2]
[312420635,1705867837965,-3485.08832391,0.00025572,2]
[312420637,1705867837974,-1618.81,0.00026086,3]
[312420639,1705867837983,-2799.78,0.00026086,3]
[312420641,1705867837993,-2333.15,0.00026086,3]
[312420643,1705867838002,-1944.29,0.00026086,3]
[312420645,1705867838011,-173.28166417,0.00026095,2]
[312420647,1705867838021,-50000.0,0.00026096,2]
[312420649,1705867838031,-154.92257581,0.00026114,2]
[312420651,1705867838040,-9047.09293089,0.00026114,7]
[312420653,1705867838049,-763.82268996,0.00026114,2]
[312420655,1705867838058,-154.9690062,0.00026114,2]
[312420657,1705867838067,-363.7718519,0.00026304,2]
[312420659,1705867838076,-199.1433421,0.00026849,2]
[312420661,1705867838085,-153.0,0.00026849,2]
[312420663,1705867838094,-434.3626415,0.00026849,2]
[312420665,1705867838103,-153.0,0.00026849,2]
[312420667,1705867838112,-457.5024889,0.00026849,2]
[312420669,1705867838121,-153.0,0.00026849,2]
[312420671,1705867838130,-153.0,0.00026849,2]
[312420673,1705867838139,-199.1433421,0.00026849,2]
[312420675,1705867838148,-199.1433421,0.00026849,2]
[312420677,1705867838158,-153.0,0.00026849,2]
[312420679,1705867838167,-153.0,0.00026849,2]
[312420681,1705867838176,-200.0,0.00026853,15]
[312420683,1705867838185,-1500.0,0.00027,2]
[312420685,1705867838195,-204.19277229,0.00027295,2]
[312420687,1705867838206,-5793.36296873,0.00027297,2]
[312420688,1705867838216,-244.22461535,0.00027313,2]
[312420690,1705867838225,-2898.81970421,0.00027395,2]
[312420692,1705867838235,-724.34065692,0.00027395,2]
[312420694,1705867838244,-3958.60103048,0.00027395,2]
[312420696,1705867838254,-6000.77948998,0.00027395,2]
[312420698,1705867838263,-226.02277803,0.00027396,2]
[312420700,1705867838274,-155.57285885,0.00027396,2]
[312420702,1705867838283,-1273.29555953,0.00027396,2]
[312420704,1705867838292,-503.33303702,0.00027397,2]
[312420706,1705867838301,-500.0,0.00027397,2]
[312420708,1705867838310,-500.0,0.00027397,2]
[312420710,1705867838319,-500.0,0.00027397,2]
[312420712,1705867838329,-208.89958626,0.00027397,2]
[312420714,1705867838338,-501.85237378,0.00027397,2]
[312420716,1705867838347,-500.0,0.00027397,2]
[312420718,1705867838358,-500.0,0.00027397,2]
[312420720,1705867838367,-500.0,0.00027397,2]
[312420722,1705867838376,-500.0,0.00027397,2]
[312420724,1705867838385,-757.65,0.00027397,2]
[312420726,1705867838394,-500.0,0.00027397,2]